fUST/lending_fUST_20240409
["ID","MTS","AMOUNT","RATE_DAILY","PERIOD"]
[321965054,1712653841438,-710.22,0.00035616,2]
[321965055,1712653841448,-500.0,0.00035616,2]
[321965056,1712653841457,-500.0,0.00035616,2]
[321965057,1712653841466,-1741.76,0.00035616,2]
[321965058,1712653841475,-500.0,0.00035616,2]
[321965059,1712653841484,-500.0,0.00035616,2]
[321965060,1712653841494,-500.0,0.00035616,2]
[321965061,1712653841504,-507.76012777,0.00035616,2]
[321965062,1712653841515,-500.0,0.00035616,2]
[321965063,1712653841524,-500.0,0.00035616,2]
[321965064,1712653841534,-500.0,0.00035616,2]
[321965065,1712653841543,-500.0,0.00035616,2]
[321965066,1712653841555,-729.69,0.00035616,2]
[321965067,1712653841564,-500.0,0.00035616,2]
[321965068,1712653841575,-500.0,0.00035616,2]
[321965069,1712653841585,-510.78363155,0.00035616,2]
[321965070,1712653841596,-500.0,0.00035616,2]
[321965071,1712653841606,-500.0,0.00035616,2]
[321965072,1712653841616,-500.0,0.00035616,2]
[321965073,1712653841627,-500.0,0.00035616,2]
[321965074,1712653841637,-500.0,0.00035616,2]
[321965075,1712653841647,-500.0,0.00035616,2]
[321965076,1712653841658,-500.0,0.00035616,2]
[321965077,1712653841668,-500.0,0.00035616,2]
[321965078,1712653841678,-500.0,0.00035616,2]
[321965079,1712653841687,-500.0,0.00035616,2]
[321965080,1712653841696,-500.0,0.00035616,2]
[321965081,1712653841706,-500.0,0.00035616,2]
[321965082,1712653841716,-196.280638,0.00035616,2]
[321965083,1712653841726,-500.0,0.00035616,2]
[321965084,1712653841736,-500.0,0.00035616,2]
[321965085,1712653841745,-500.0,0.00035616,2]
[321965086,1712653841754,-500.0,0.00035616,2]
[321965087,1712653841764,-500.0,0.00035616,2]
[321965088,1712653841773,-1438.31,0.00035616,2]
[321965089,1712653841782,-500.0,0.00035616,2]
[321965090,1712653841791,-500.0,0.00035616,2]
[321965091,1712653841800,-500.0,0.00035616,2]
[321965092,1712653841809,-500.0,0.00035616,2]
[321965093,1712653841819,-500.0,0.00035616,2]
[321965094,1712653841836,-500.0,0.00035616,2]
[321965095,1712653841846,-500.0,0.00035616,2]
[321965096,1712653841859,-500.0,0.00035616,2]
[321965097,1712653841869,-500.0,0.00035616,2]
[321965098,1712653841882,-300.0,0.00035616,2]
[321965099,1712653841892,-500.0,0.00035616,2]
[321965100,1712653841902,-500.0,0.00035616,2]
[321965101,1712653841915,-500.0,0.00035616,2]
[321965102,1712653841924,-500.0,0.00035616,2]
[321965103,1712653841933,-500.0,0.00035616,2]
[321965104,1712653841942,-501.50341539,0.00035616,2]
[321965105,1712653841951,-500.0,0.00035616,2]
[321965106,1712653841960,-500.0,0.00035616,2]
[321965107,1712653841969,-374.5924307,0.00035616,2]
[321965108,1712653841977,-500.0,0.00035616,2]
[321965109,1712653841986,-500.63695796,0.00035616,2]
[321965110,1712653841995,-500.0,0.00035616,2]
[321965111,1712653842004,-500.0,0.00035616,2]
[321965112,1712653842013,-500.0,0.00035616,2]
[321965113,1712653842022,-500.0,0.00035616,2]
[321965114,1712653842031,-500.0,0.00035616,2]
[321965115,1712653842039,-500.0,0.00035616,2]
[321965116,1712653842048,-585.2318823,0.00035616,2]
[321965117,1712653842057,-504.48504271,0.00035616,2]
[321965118,1712653842066,-501.97133587,0.00035616,30]
[321965119,1712653842075,-500.0,0.00035616,2]
[321965120,1712653842084,-500.0,0.00035616,2]
[321965121,1712653842093,-500.0,0.00035616,2]
[321965122,1712653842102,-508.18434058,0.00035616,2]
[321965123,1712653842111,-1000.0,0.00035616,2]
[321965124,1712653842120,-500.0,0.00035616,2]
[321965125,1712653842132,-172.4328642,0.00035616,2]
[321965126,1712653842141,-500.0,0.00035616,2]
[321965127,1712653842150,-500.0,0.00035616,2]
[321965128,1712653842159,-500.0,0.00035616,2]
[321965129,1712653842169,-500.0,0.00035616,2]
[321965130,1712653842178,-500.0,0.00035616,2]
[321965131,1712653842187,-500.77374777,0.00035616,2]
[321965132,1712653842195,-500.0,0.00035616,2]
[321965133,1712653842204,-500.0,0.00035616,2]
[321965134,1712653842213,-500.0,0.00035616,2]
[321965135,1712653842222,-500.0,0.00035616,2]
[321965136,1712653842230,-500.0,0.00035616,2]
[321965137,1712653842239,-500.0,0.00035616,2]
[321965138,1712653842248,-500.0,0.00035616,2]
[321965139,1712653842257,-500.0,0.00035616,2]
[321965140,1712653842267,-220.13815965,0.00035616,2]
[321965141,1712653842276,-501.15600288,0.00035616,2]
[321965142,1712653842285,-500.0,0.00035616,2]
[321965143,1712653842294,-203.35958831,0.00035616,2]
[321965144,1712653842302,-501.82630852,0.00035616,2]
[321965145,1712653842312,-500.0,0.00035616,2]
[321965146,1712653842321,-500.0,0.00035616,2]
[321965147,1712653842330,-500.0,0.00035616,2]
[321965148,1712653842338,-500.0,0.00035616,2]
[321965149,1712653842347,-236.6693551,0.00035616,2]
[321965150,1712653842356,-337.43909331,0.00035616,2]
[321965151,1712653842365,-500.0,0.00035616,2]
[321965152,1712653842374,-308.75985958,0.00035616,2]
[321965153,1712653842383,-500.0,0.00035616,2]
[321965154,1712653842392,-500.0,0.00035616,2]
[321965155,1712653842401,-500.0,0.00035616,2]
[321965156,1712653842410,-500.0,0.00035616,2]
[321965157,1712653842420,-855.73,0.00035616,2]
[321965158,1712653842429,-2403.91,0.00035616,2]
[321965159,1712653842438,-500.0,0.00035616,2]
[321965160,1712653842448,-1571.57,0.00035616,2]
[321965161,1712653842457,-500.0,0.00035616,2]
[321965163,1712653842466,-500.0,0.00035616,2]
[321965166,1712653842475,-500.0,0.00035616,2]
[321965169,1712653842484,-1151.77,0.00035616,2]
[321965172,1712653842494,-500.0,0.00035616,2]
[321965175,1712653842503,-500.0,0.00035616,2]
[321965178,1712653842512,-500.0,0.00035616,2]
[321965180,1712653842521,-4901.43,0.00035616,2]
[321965183,1712653842530,-4163.56,0.00035616,2]
[321965185,1712653842539,-1834.58,0.00035616,2]
[321965187,1712653842547,-500.0,0.00035616,2]
[321965188,1712653842556,-1419.5,0.00035616,2]
[321965190,1712653842566,-500.0,0.00035616,2]
[321965193,1712653842574,-500.0,0.00035616,2]
[321965195,1712653842583,-500.0,0.00035616,2]
[321965197,1712653842593,-500.0,0.00035616,2]
[321965199,1712653842601,-514.04904968,0.00035616,2]
[321965200,1712653842610,-500.0,0.00035616,2]
[321965201,1712653842619,-2308.78,0.00035616,2]
[321965202,1712653842630,-1083.07,0.00035616,2]
[321965203,1712653842639,-1411.19,0.00035616,2]
[321965204,1712653842649,-500.0,0.00035616,2]
[321965205,1712653842658,-500.0,0.00035616,2]
[321965206,1712653842667,-155.56708048,0.00035616,2]
[321965207,1712653842676,-500.0,0.00035616,2]
[321965209,1712653842685,-500.0,0.00035616,2]
[321965210,1712653842695,-611.87652153,0.00035616,2]
[321965212,1712653842704,-500.0,0.00035616,2]
[321965214,1712653842713,-500.0,0.00035616,2]
[321965216,1712653842722,-674.51,0.00035616,2]
[321965218,1712653842731,-500.0,0.00035616,2]
[321965220,1712653842740,-536.35467801,0.00035616,2]
[321965221,1712653842749,-375.68274984,0.00035616,2]
[321965222,1712653842758,-500.0,0.00035616,2]
[321965223,1712653842767,-642.31,0.00035616,2]
[321965224,1712653842775,-500.0,0.00035616,2]
[321965225,1712653842784,-227.25539234,0.00035616,2]
[321965226,1712653842793,-500.0,0.00035616,2]
[321965227,1712653842802,-500.0,0.00035616,2]
[321965230,1712653842913,-500.0,0.00035616,2]
[321965232,1712653842923,-500.0,0.00035616,2]
[321965233,1712653842932,-500.0,0.00035616,2]
[321965234,1712653842941,-500.0,0.00035616,2]
[321965235,1712653842950,-500.0,0.00035616,2]
[321965237,1712653842959,-1453.32,0.00035616,2]
[321965239,1712653842969,-502.23267166,0.00035616,2]
[321965241,1712653842978,-500.0,0.00035616,2]
[321965242,1712653842987,-502.58820334,0.00035616,2]
[321965243,1712653842996,-921.5,0.00035616,2]
[321965244,1712653843005,-724.33,0.00035616,2]
[321965245,1712653843014,-500.0,0.00035616,2]
[321965246,1712653843023,-2600.89,0.00035616,2]
[321965247,1712653843032,-500.0,0.00035616,2]
[321965248,1712653843041,-1572.55,0.00035616,2]
[321965249,1712653843051,-500.0,0.00035616,2]
[321965250,1712653843060,-500.0,0.00035616,2]
[321965251,1712653843069,-500.0,0.00035616,2]
[321965252,1712653843079,-500.0,0.00035616,2]
[321965253,1712653843089,-500.0,0.00035616,2]
[321965254,1712653843098,-500.0,0.00035616,2]
[321965255,1712653843107,-500.0,0.00035616,2]
[321965256,1712653843117,-2180.89,0.00035616,2]
[321965258,1712653843128,-534.11755053,0.00035616,2]
[321965259,1712653843137,-500.0,0.00035616,2]
[321965260,1712653843146,-500.0,0.00035616,2]
[321965261,1712653843155,-500.0,0.00035616,2]
[321965262,1712653843164,-2412.32,0.00035616,2]
[321965263,1712653843173,-500.0,0.00035616,2]
[321965264,1712653843183,-7298.66050812,0.00035616,2]
[321965267,1712653843205,-9205.91949188,0.00035616,2]
[321965269,1712653843214,-500.0,0.00035616,2]
[321965270,1712653843224,-1312.27,0.00035616,2]
[321965271,1712653843233,-500.0,0.00035616,2]
[321965272,1712653843243,-151.0,0.00035616,2]
[321965273,1712653843252,-500.0,0.00035616,2]
[321965274,1712653843261,-500.0,0.00035616,2]
[321965275,1712653843270,-500.0,0.00035616,2]
[321965276,1712653843280,-500.0,0.00035616,2]
[321965277,1712653843290,-500.0,0.00035616,2]
[321965278,1712653843300,-500.0,0.00035616,2]
[321965279,1712653843310,-542.98,0.00035616,2]
[321965280,1712653843319,-538.13,0.00035616,2]
[321965281,1712653843329,-501.35539682,0.00035616,2]
[321965282,1712653843338,-500.0,0.00035616,2]
[321965283,1712653843347,-500.0,0.00035616,2]
[321965284,1712653843356,-345.13369233,0.00035616,2]
[321965285,1712653843365,-3229.27,0.00035616,2]
[321965286,1712653843376,-500.0,0.00035616,2]
[321965287,1712653843385,-500.0,0.00035616,2]
[321965288,1712653843394,-500.0,0.00035616,2]
[321965289,1712653843403,-500.0,0.00035616,2]
[321965290,1712653843412,-500.0,0.00035616,2]
[321965291,1712653843421,-600.0,0.00035616,2]
[321965292,1712653843431,-12715.56,0.00035616,2]
[321965293,1712653843441,-500.0,0.00035616,2]
[321965294,1712653843451,-500.0,0.00035616,2]
[321965295,1712653843460,-500.0,0.00035616,2]
[321965296,1712653843469,-500.0,0.00035616,2]
[321965297,1712653843478,-500.0,0.00035616,2]
[321965298,1712653843486,-500.0,0.00035616,2]
[321965299,1712653843495,-500.0,0.00035616,2]
[321965300,1712653843504,-500.0,0.00035616,2]
[321965301,1712653843513,-500.0,0.00035616,2]
[321965302,1712653843523,-1057.64,0.00035616,2]
[321965303,1712653843532,-500.0,0.00035616,2]
[321965304,1712653843541,-500.0,0.00035616,2]
[321965305,1712653843550,-500.0,0.00035616,2]
[321965306,1712653843559,-240.0912655,0.00035616,2]
[321965307,1712653843569,-500.0,0.00035616,2]
[321965308,1712653843578,-1634.68,0.00035616,2]
[321965309,1712653843587,-501.42083841,0.00035616,2]
[321965310,1712653843596,-500.0,0.00035616,2]
[321965311,1712653843605,-500.0,0.00035616,2]
[321965312,1712653843614,-500.0,0.00035616,2]
[321965313,1712653843624,-500.0,0.00035616,2]
[321965314,1712653843633,-4874.26,0.00035616,2]
[321965315,1712653843643,-310.00449145,0.00035616,2]
[321965316,1712653843652,-500.0,0.00035616,2]
[321965317,1712653843661,-500.0,0.00035616,2]
[321965318,1712653843670,-164.1480007,0.00035616,2]
[321965319,1712653843679,-500.0,0.00035616,2]
[321965320,1712653843689,-500.0,0.00035616,2]
[321965321,1712653843698,-502.23,0.00035616,2]
[321965322,1712653843707,-500.0,0.00035616,2]
[321965323,1712653843716,-578.42139183,0.00035616,2]
[321965324,1712653843725,-500.0,0.00035616,2]
[321965325,1712653843735,-1148.24,0.00035616,2]
[321965326,1712653843744,-1860.5,0.00035616,2]
[321965327,1712653843753,-500.0,0.00035616,2]
[321965328,1712653843763,-500.0,0.00035616,2]
[321965329,1712653843772,-500.0,0.00035616,2]
[321965330,1712653843781,-500.0,0.00035616,2]
[321965331,1712653843790,-500.0,0.00035616,2]
[321965332,1712653843799,-501.01374739,0.00035616,2]
[321965333,1712653843808,-500.0,0.00035616,2]
[321965334,1712653843818,-500.0,0.00035616,2]
[321965335,1712653843828,-500.0,0.00035616,2]
[321965336,1712653843839,-500.0,0.00035616,2]
[321965337,1712653843848,-500.0,0.00035616,2]
[321965338,1712653843857,-500.0,0.00035616,2]
[321965339,1712653843869,-500.0,0.00035616,2]
[321965340,1712653843879,-2120.0697231,0.00035888,4]
[321965341,1712653843888,-2754.92544523,0.00035888,4]
[321965342,1712653843897,-218.96078063,0.00035888,4]
[321965343,1712653843909,-500.0,0.0003589,5]
[321965344,1712653843919,-500.0,0.0003589,5]
[321965345,1712653843929,-500.0,0.0003589,5]
[321965346,1712653843938,-500.0,0.0003589,5]
[321965347,1712653843947,-500.0,0.0003589,5]
[321965348,1712653843956,-500.0,0.0003589,5]
[321965349,1712653843965,-1173.49,0.0003589,5]
[321965350,1712653843974,-500.0,0.0003589,5]
[321965351,1712653843984,-500.0,0.0003589,5]
[321965352,1712653843993,-475.03737929,0.0003589,5]
[321965353,1712653844188,-500.0,0.00035616,2]
[321965354,1712653844198,-24.96262071,0.0003589,5]
[321965355,1712653844207,-155.35297994,0.0003589,4]
[321965356,1712653844216,-500.0,0.0003589,5]
[321965357,1712653844226,-391.25270026,0.0003589,5]
[321965358,1712653844235,-500.0,0.0003589,5]
[321965359,1712653844244,-500.0,0.0003589,5]
[321965360,1712653844253,-500.0,0.0003589,5]
[321965361,1712653844262,-500.75401144,0.0003589,5]
[321965362,1712653844272,-500.0,0.0003589,5]
[321965363,1712653844282,-500.0,0.0003589,5]
[321965364,1712653844291,-500.0,0.0003589,5]
[321965365,1712653844301,-501.18706969,0.0003589,5]
[321965366,1712653844310,-500.0,0.0003589,5]
[321965367,1712653844320,-500.0,0.0003589,5]
[321965368,1712653844329,-500.0,0.0003589,5]
[321965369,1712653844339,-500.0,0.0003589,5]
[321965370,1712653844349,-503.90134214,0.0003589,5]
[321965371,1712653844358,-500.0,0.0003589,5]
[321965372,1712653844367,-500.0,0.0003589,5]
[321965373,1712653844377,-500.0,0.0003589,5]
[321965374,1712653844386,-247.00310956,0.0003589,5]
[321965375,1712653844396,-500.0,0.0003589,5]
[321965376,1712653844404,-500.0,0.0003589,5]
[321965377,1712653844414,-764.71,0.0003589,5]
[321965378,1712653844423,-1785.73,0.0003589,5]
[321965379,1712653844432,-500.0,0.0003589,5]
[321965380,1712653844443,-545.71994075,0.0003589,5]
[321965381,1712653844452,-500.0,0.0003589,5]
[321965382,1712653844461,-500.0,0.0003589,5]
[321965383,1712653844471,-602.67,0.0003589,5]
[321965384,1712653844480,-500.0,0.0003589,5]
[321965385,1712653844490,-500.0,0.0003589,5]
[321965386,1712653844499,-500.0,0.0003589,5]
[321965387,1712653844508,-500.0,0.0003589,5]
[321965388,1712653844517,-500.0,0.0003589,5]
[321965389,1712653844526,-500.0,0.0003589,5]
[321965390,1712653844535,-500.0,0.0003589,5]
[321965391,1712653844544,-500.0,0.0003589,14]
[321965392,1712653844554,-500.0,0.0003589,5]
[321965393,1712653844563,-1211.98,0.0003589,5]
[321965394,1712653844572,-500.0,0.0003589,5]
[321965395,1712653844584,-500.79271676,0.0003589,5]
[321965396,1712653844593,-500.0,0.0003589,5]
[321965397,1712653844602,-500.0,0.0003589,5]
[321965398,1712653844612,-500.0,0.0003589,5]
[321965399,1712653844621,-3.54136582,0.0003589,5]
[321965400,1712653844867,-496.45863418,0.0003589,5]
[321965401,1712653844878,-500.0,0.0003589,5]
[321965402,1712653844887,-500.0,0.0003589,5]
[321965403,1712653844896,-500.0,0.0003589,5]
[321965404,1712653844907,-501.72300528,0.0003589,5]
[321965405,1712653844915,-501.00546119,0.0003589,5]
[321965406,1712653844925,-500.0,0.0003589,5]
[321965407,1712653844934,-500.0,0.0003589,5]
[321965408,1712653844944,-500.0,0.0003589,5]
[321965409,1712653844953,-500.0,0.0003589,5]
[321965410,1712653844962,-764.83,0.0003589,2]
[321965411,1712653844972,-586.5,0.0003589,5]
[321965412,1712653844981,-500.0,0.0003589,5]
[321965413,1712653844990,-500.0,0.0003589,5]
[321965414,1712653845000,-624.36,0.0003589,5]
[321965415,1712653845010,-730.31,0.0003589,5]
[321965416,1712653845019,-518.62,0.0003589,5]
[321965417,1712653845028,-500.0,0.0003589,5]
[321965418,1712653845037,-20.90262697,0.0003589,5]
[321965419,1712653845053,-479.09737303,0.0003589,5]
[321965420,1712653845062,-500.0,0.0003589,5]
[321965421,1712653845070,-500.0,0.0003589,5]
[321965422,1712653845080,-500.0,0.0003589,5]
[321965423,1712653845089,-500.0,0.0003589,5]
[321965424,1712653845098,-500.0,0.0003589,5]
[321965425,1712653845107,-500.0,0.0003589,5]
[321965426,1712653845115,-500.0,0.0003589,5]
[321965427,1712653845126,-500.0,0.0003589,5]
[321965428,1712653845135,-506.30224677,0.0003589,5]
[321965429,1712653845144,-960.4,0.0003589,5]
[321965430,1712653845153,-710.22,0.0003589,5]
[321965431,1712653845162,-1741.76,0.0003589,5]
[321965432,1712653845172,-500.0,0.0003589,5]
[321965433,1712653845181,-500.0,0.0003589,5]
[321965434,1712653845190,-500.0,0.0003589,5]
[321965435,1712653845199,-500.0,0.0003589,5]
[321965436,1712653845209,-500.0,0.0003589,5]
[321965437,1712653845220,-729.69,0.0003589,5]
[321965438,1712653845230,-500.0,0.0003589,5]
[321965439,1712653845239,-500.0,0.0003589,5]
[321965440,1712653845248,-500.0,0.0003589,5]
[321965441,1712653845259,-500.0,0.0003589,5]
[321965442,1712653845268,-500.0,0.0003589,5]
[321965443,1712653845278,-500.0,0.0003589,5]
[321965444,1712653845288,-500.0,0.0003589,5]
[321965445,1712653845298,-500.0,0.0003589,5]
[321965446,1712653845307,-500.0,0.0003589,5]
[321965447,1712653845316,-500.0,0.0003589,5]
[321965448,1712653845325,-500.0,0.0003589,5]
[321965449,1712653845334,-500.0,0.0003589,5]
[321965450,1712653845343,-500.0,0.0003589,5]
[321965451,1712653845353,-500.0,0.0003589,5]
[321965452,1712653845362,-500.0,0.0003589,5]
[321965453,1712653845371,-1438.31,0.0003589,5]
[321965454,1712653845385,-500.0,0.0003589,5]
[321965455,1712653845396,-500.0,0.0003589,5]
[321965456,1712653845405,-500.0,0.0003589,5]
[321965457,1712653845415,-500.0,0.0003589,5]
[321965458,1712653845425,-500.0,0.0003589,5]
[321965459,1712653845436,-500.0,0.0003589,5]
[321965460,1712653845448,-284.34149753,0.0003589,5]
[321965462,1712653845459,-505.39825563,0.0003589,5]
[321965464,1712653845469,-500.0,0.0003589,5]
[321965466,1712653845479,-500.0,0.0003589,5]
[321965468,1712653845492,-500.0,0.0003589,5]
[321965469,1712653845508,-500.0,0.0003589,5]
[321965471,1712653845518,-503.87987524,0.0003589,5]
[321965472,1712653845529,-500.0,0.0003589,5]
[321965473,1712653845540,-500.0,0.0003589,5]
[321965474,1712653845552,-500.0,0.0003589,5]
[321965475,1712653845562,-500.0,0.0003589,5]
[321965476,1712653845573,-504.42821858,0.0003589,5]
[321965477,1712653845583,-500.0,0.0003589,5]
[321965478,1712653845594,-500.0,0.0003589,5]
[321965479,1712653845609,-500.0,0.0003589,5]
[321965480,1712653845620,-855.73,0.0003589,5]
[321965481,1712653845642,-2403.91,0.0003589,5]
[321965482,1712653845653,-500.0,0.0003589,5]
[321965483,1712653845665,-1571.57,0.0003589,5]
[321965484,1712653845679,-500.0,0.0003589,5]
[321965485,1712653845691,-1151.77,0.0003589,5]
[321965486,1712653845702,-500.0,0.0003589,5]
[321965487,1712653845713,-500.0,0.0003589,5]
[321965488,1712653845725,-500.0,0.0003589,5]
[321965489,1712653845737,-4901.43,0.0003589,5]
[321965490,1712653845749,-4163.56,0.0003589,5]
[321965491,1712653845759,-1834.58,0.0003589,5]
[321965492,1712653845771,-500.0,0.0003589,5]
[321965493,1712653845782,-500.0,0.0003589,5]
[321965494,1712653845793,-1419.5,0.0003589,5]
[321965495,1712653845804,-500.0,0.0003589,5]
[321965496,1712653845816,-553.67930524,0.0003589,5]
[321965497,1712653845830,-500.0,0.0003589,5]
[321965498,1712653845841,-2308.78,0.0003589,5]
[321965499,1712653845852,-1083.07,0.0003589,5]
[321965500,1712653845863,-1411.19,0.0003589,5]
[321965501,1712653845880,-500.0,0.0003589,5]
[321965502,1712653845892,-500.0,0.0003589,5]
[321965503,1712653845902,-500.0,0.0003589,5]
[321965504,1712653845915,-674.51,0.0003589,5]
[321965505,1712653845926,-500.0,0.0003589,5]
[321965506,1712653845936,-642.31,0.0003589,5]
[321965507,1712653845946,-500.0,0.0003589,5]
[321965508,1712653845957,-500.0,0.0003589,5]
[321965509,1712653845967,-500.0,0.0003589,5]
[321965510,1712653845977,-509.14743441,0.0003589,5]
[321965511,1712653845987,-500.0,0.0003589,5]
[321965512,1712653845997,-1453.32,0.0003589,5]
[321965514,1712653846007,-500.0,0.0003589,5]
[321965515,1712653846016,-921.5,0.0003589,5]
[321965517,1712653846026,-724.33,0.0003589,5]
[321965518,1712653846035,-500.0,0.0003589,5]
[321965519,1712653846045,-2600.89,0.0003589,5]
[321965520,1712653846054,-500.0,0.0003589,5]
[321965521,1712653846063,-1572.55,0.0003589,5]
[321965522,1712653846073,-500.0,0.0003589,5]
[321965523,1712653846083,-621.25131055,0.0003589,5]
[321965524,1712653846092,-500.0,0.0003589,5]
[321965525,1712653846102,-500.0,0.0003589,5]
[321965526,1712653846111,-500.0,0.0003589,5]
[321965527,1712653846121,-500.0,0.0003589,5]
[321965528,1712653846135,-2180.89,0.0003589,5]
[321965529,1712653846145,-500.0,0.0003589,5]
[321965530,1712653846154,-500.0,0.0003589,5]
[321965531,1712653846164,-2412.32,0.0003589,5]
[321965532,1712653846174,-500.0,0.0003589,5]
[321965533,1712653846184,-16504.58,0.0003589,5]
[321965534,1712653846193,-500.0,0.0003589,5]
[321965535,1712653846203,-1312.27,0.0003589,5]
[321965536,1712653846212,-500.0,0.0003589,5]
[321965537,1712653846221,-500.0,0.0003589,5]
[321965538,1712653846231,-500.0,0.0003589,5]
[321965540,1712653846240,-500.0,0.0003589,5]
[321965542,1712653846249,-526.08765852,0.0003589,5]
[321965543,1712653846259,-500.0,0.0003589,5]
[321965545,1712653846268,-542.98,0.0003589,5]
[321965546,1712653846277,-538.13,0.0003589,5]
[321965547,1712653846287,-500.0,0.0003589,5]
[321965548,1712653846296,-500.0,0.0003589,5]
[321965549,1712653846305,-3229.27,0.0003589,5]
[321965551,1712653846315,-500.0,0.0003589,5]
[321965553,1712653846323,-500.0,0.0003589,5]
[321965554,1712653846332,-500.0,0.0003589,5]
[321965555,1712653846342,-500.0,0.0003589,5]
[321965557,1712653846351,-500.0,0.0003589,5]
[321965559,1712653846360,-12715.56,0.0003589,5]
[321965560,1712653846370,-500.0,0.0003589,5]
[321965562,1712653846382,-1057.64,0.0003589,5]
[321965564,1712653846392,-500.0,0.0003589,5]
[321965566,1712653846402,-500.0,0.0003589,5]
[321965568,1712653846411,-500.0,0.0003589,5]
[321965570,1712653846420,-1634.68,0.0003589,5]
[321965572,1712653846429,-500.0,0.0003589,5]
[321965574,1712653846441,-500.0,0.0003589,5]
[321965576,1712653846451,-4874.26,0.0003589,5]
[321965578,1712653846460,-500.0,0.0003589,5]
[321965579,1712653846470,-500.0,0.0003589,5]
[321965580,1712653846479,-502.23,0.0003589,5]
[321965581,1712653846488,-500.0,0.0003589,5]
[321965582,1712653846498,-240.56211982,0.0003589,5]
[321965583,1712653846508,-1148.24,0.0003589,5]
[321965584,1712653846518,-1860.5,0.0003589,5]
[321965585,1712653846527,-500.0,0.0003589,5]
[321965586,1712653846536,-500.0,0.0003589,5]
[321965587,1712653846546,-500.0,0.0003589,5]
[321965588,1712653846555,-554.59692544,0.0003589,5]
[321965589,1712653846565,-500.0,0.0003589,5]
[321965590,1712653846575,-500.0,0.0003589,5]
[321965591,1712653846584,-500.0,0.0003589,5]
[321965592,1712653846594,-500.0,0.0003589,5]
[321965593,1712653846604,-500.0,0.0003589,5]
[321965594,1712653846613,-500.0,0.0003589,5]
[321965595,1712653846626,-500.0,0.0003589,5]
[321965596,1712653846635,-350.0,0.0003589,2]
[321965597,1712653846645,-166.666666,0.00035954,2]
[321965598,1712653846654,-310.1006851,0.00035996,2]
[321965599,1712653846663,-1112.0,0.00036,30]
[321965600,1712653846673,-350.0,0.00036,2]
[321965601,1712653846683,-672.8681271,0.00036059,2]
[321965602,1712653846692,-156.67447725,0.00036064,2]
[321965603,1712653846701,-216.67010204,0.00036162,4]
[321965604,1712653846711,-156.54810628,0.00036162,4]
[321965605,1712653846720,-30817.89751149,0.00036163,4]
[321965606,1712653846733,-587.3,0.00036163,2]
[321965607,1712653846743,-587.3,0.00036163,2]
[321965608,1712653846751,-587.3,0.00036163,2]
[321965609,1712653846761,-587.3,0.00036163,2]
[321965610,1712653846770,-587.3,0.00036163,2]
[321965611,1712653846779,-587.3,0.00036163,2]
[321965612,1712653846789,-587.3,0.00036163,2]
[321965613,1712653846798,-587.3,0.00036163,2]
[321965614,1712653846808,-500.0,0.00036164,5]